[Event "*** Titled Tuesday Blitz"]
[Site "Chess.com"]
[Date "2018.05.01"]
[Round "8"]
[White "AsaHoffmann"]
[Black "aa175"]
[Result "1-0"]
[WhiteElo "2005"]
[BlackElo "1849"]
[TimeControl "180+2"]
[EndTime "14:45:27 PDT"]
[Termination "AsaHoffmann won by checkmate"]

1. d4 {[%clk 0:02:36.5]} 1... e5 {[%clk 0:03:00.4]} 2. Nf3 {[%clk 0:02:35.6]}
2... exd4 {[%clk 0:03:00.9]} 3. Nxd4 {[%clk 0:02:35.9]} 3... Nf6 {[%clk
0:03:02.8]} 4. Nc3 {[%clk 0:02:36.1]} 4... d5 {[%clk 0:03:01.3]} 5. Bg5 {[%clk
0:02:35.6]} 5... c5 {[%clk 0:03:01.2]} 6. Nf3 {[%clk 0:02:31.7]} 6... d4 {[%clk
0:02:59.2]} 7. Ne4 {[%clk 0:02:26.2]} 7... Nbd7 {[%clk 0:02:49.8]} 8. c3 {[%clk
0:02:19.5]} 8... Be7 {[%clk 0:02:47]} 9. Bxf6 {[%clk 0:02:16]} 9... Nxf6 {[%clk
0:02:48.8]} 10. Ng3 {[%clk 0:02:07.6]} 10... dxc3 {[%clk 0:02:48.1]} 11. Qxd8+
{[%clk 0:02:06.6]} 11... Bxd8 {[%clk 0:02:50]} 12. bxc3 {[%clk 0:02:06.8]} 12...
Ba5 {[%clk 0:02:50.6]} 13. Kd2 {[%clk 0:02:00.3]} 13... Nd5 {[%clk 0:02:48.3]}
14. Rc1 {[%clk 0:01:57.3]} 14... Bg4 {[%clk 0:02:45.9]} 15. e4 {[%clk
0:01:57.1]} 15... Bxf3 {[%clk 0:02:42.8]} 16. gxf3 {[%clk 0:01:57.4]} 16... Nxc3
{[%clk 0:02:33.1]} 17. Rxc3 {[%clk 0:01:56.6]} 17... O-O-O+ {[%clk 0:02:35]} 18.
Kc2 {[%clk 0:01:56.9]} 18... Bxc3 {[%clk 0:02:36.9]} 19. Kxc3 {[%clk 0:01:57.5]}
19... Rd1 {[%clk 0:02:27.8]} 20. Bh3+ {[%clk 0:01:57.2]} 20... Kc7 {[%clk
0:02:26.9]} 21. Rxd1 {[%clk 0:01:56.6]} 21... b5 {[%clk 0:02:28.8]} 22. Rd7+
{[%clk 0:01:55.1]} 22... Kc6 {[%clk 0:02:30]} 23. Rxf7 {[%clk 0:01:55.8]} 23...
g5 {[%clk 0:02:30.7]} 24. Be6 {[%clk 0:01:55]} 24... Rd8 {[%clk 0:02:31.2]} 25.
Bd5+ {[%clk 0:01:55.7]} 25... Kb6 {[%clk 0:02:32.4]} 26. Nf5 {[%clk 0:01:55.9]}
26... b4+ {[%clk 0:02:32.9]} 27. Kc4 {[%clk 0:01:56.5]} 27... h5 {[%clk
0:02:33.3]} 28. Rb7+ {[%clk 0:01:55.7]} 28... Ka6 {[%clk 0:02:34.4]} 29. Rb5
{[%clk 0:01:56]} 29... Rxd5 {[%clk 0:02:24.6]} 30. exd5 {[%clk 0:01:56.6]} 30...
g4 {[%clk 0:02:26.2]} 31. d6 {[%clk 0:01:51.1]} 31... gxf3 {[%clk 0:02:26.5]}
32. d7 {[%clk 0:01:51.7]} 32... b3 {[%clk 0:02:28.1]} 33. axb3 {[%clk
0:01:51.5]} 33... h4 {[%clk 0:02:28.8]} 34. d8=Q {[%clk 0:01:51.1]} 34... h3
{[%clk 0:02:30.7]} 35. Qa5# {[%clk 0:01:50.9]} 1-0

[Event "*** Titled Tuesday Blitz"]
[Site "Chess.com"]
[Date "2018.05.01"]
[Round "8"]
[White "bugsbunny444"]
[Black "Too_Stupid_To_Play"]
[Result "1-0"]
[WhiteElo "2332"]
[BlackElo "2179"]
[TimeControl "180+2"]
[EndTime "14:46:09 PDT"]
[Termination "bugsbunny444 won by resignation"]

1. Nf3 {[%clk 0:03:01.9]} 1... Nf6 {[%clk 0:03:00.2]} 2. c4 {[%clk 0:03:03.3]}
2... e6 {[%clk 0:03:00.7]} 3. g3 {[%clk 0:03:04.6]} 3... b6 {[%clk 0:03:01.7]}
4. Bg2 {[%clk 0:03:06]} 4... Bb7 {[%clk 0:03:03.6]} 5. O-O {[%clk 0:03:07.2]}
5... c5 {[%clk 0:03:05.1]} 6. b3 {[%clk 0:03:08.7]} 6... Be7 {[%clk 0:03:05.5]}
7. Bb2 {[%clk 0:03:10.3]} 7... O-O {[%clk 0:03:07.2]} 8. Nc3 {[%clk 0:03:11.9]}
8... d6 {[%clk 0:03:06.8]} 9. e3 {[%clk 0:03:13.3]} 9... Nbd7 {[%clk 0:03:05.6]}
10. d4 {[%clk 0:03:14.8]} 10... a6 {[%clk 0:03:05.6]} 11. d5 {[%clk 0:03:15.7]}
11... e5 {[%clk 0:03:06.2]} 12. a4 {[%clk 0:03:15.3]} 12... Ne8 {[%clk
0:03:06.4]} 13. e4 {[%clk 0:03:15.9]} 13... Nc7 {[%clk 0:03:07.4]} 14. Ne1
{[%clk 0:03:04.7]} 14... b5 {[%clk 0:03:08]} 15. axb5 {[%clk 0:02:34.2]} 15...
axb5 {[%clk 0:03:09.9]} 16. cxb5 {[%clk 0:02:32.6]} 16... Nb6 {[%clk 0:03:04.8]}
17. Nc2 {[%clk 0:02:20.7]} 17... Rxa1 {[%clk 0:03:03.3]} 18. Qxa1 {[%clk
0:02:18.8]} 18... Qd7 {[%clk 0:03:01.1]} 19. Qa7 {[%clk 0:02:04.6]} 19... Nxb5
{[%clk 0:02:27]} 20. Qxb6 {[%clk 0:01:44.5]} 20... Nxc3 {[%clk 0:02:26.8]} 21.
Bxc3 {[%clk 0:01:45.1]} 21... Ra8 {[%clk 0:01:58.8]} 22. Bh3 {[%clk 0:01:21.8]}
1-0

[Event "*** Titled Tuesday Blitz"]
[Site "Chess.com"]
[Date "2018.05.01"]
[Round "8"]
[White "Sanan_Sjugirov"]
[Black "ChessicallyInclined"]
[Result "1-0"]
[WhiteElo "2776"]
[BlackElo "2215"]
[TimeControl "180+2"]
[EndTime "14:47:11 PDT"]
[Termination "Sanan_Sjugirov won by resignation"]

1. e4 {[%clk 0:03:01.9]} 1... e5 {[%clk 0:02:54.4]} 2. Nf3 {[%clk 0:03:02.1]}
2... Nc6 {[%clk 0:02:55.1]} 3. Bb5 {[%clk 0:03:03]} 3... a6 {[%clk 0:02:55.3]}
4. Ba4 {[%clk 0:03:04]} 4... Nf6 {[%clk 0:02:55.9]} 5. O-O {[%clk 0:03:04.9]}
5... Be7 {[%clk 0:02:56.3]} 6. d3 {[%clk 0:03:06.1]} 6... b5 {[%clk 0:02:56.5]}
7. Bb3 {[%clk 0:03:07.5]} 7... O-O {[%clk 0:02:58]} 8. a4 {[%clk 0:03:07.8]}
8... Bb7 {[%clk 0:02:56.4]} 9. Nc3 {[%clk 0:02:47.5]} 9... b4 {[%clk 0:02:54.1]}
10. Nd5 {[%clk 0:02:47.6]} 10... d6 {[%clk 0:02:55.2]} 11. Nxe7+ {[%clk
0:02:44.7]} 11... Qxe7 {[%clk 0:02:57.1]} 12. Bg5 {[%clk 0:02:44.5]} 12... Nd8
{[%clk 0:02:53.2]} 13. c3 {[%clk 0:02:36.2]} 13... bxc3 {[%clk 0:02:53.4]} 14.
bxc3 {[%clk 0:02:38.1]} 14... Ne6 {[%clk 0:02:54.8]} 15. Bh4 {[%clk 0:02:39]}
15... a5 {[%clk 0:02:48.6]} 16. Re1 {[%clk 0:02:36.9]} 16... Nc5 {[%clk
0:02:47.5]} 17. Bc2 {[%clk 0:02:35.3]} 17... Qe6 {[%clk 0:02:40.8]} 18. Nd2
{[%clk 0:01:57]} 18... Ba6 {[%clk 0:02:31.8]} 19. Qf3 {[%clk 0:01:52.9]} 19...
Ne8 {[%clk 0:01:31.3]} 20. d4 {[%clk 0:01:51.6]} 20... Nd7 {[%clk 0:01:31]} 21.
Bb3 {[%clk 0:01:50.1]} 21... Qh6 {[%clk 0:01:26.2]} 22. Be7 {[%clk 0:01:51]}
22... Qxd2 {[%clk 0:01:12]} 23. Bxf8 {[%clk 0:01:49.7]} 23... Nef6 {[%clk
0:01:08.9]} 24. Be7 {[%clk 0:01:49.6]} 24... exd4 {[%clk 0:01:10.3]} 25. e5
{[%clk 0:01:47.8]} 25... Rb8 {[%clk 0:01:07.9]} 26. exf6 {[%clk 0:01:45.6]}
26... Rxb3 {[%clk 0:01:05]} 27. Bxd6 {[%clk 0:01:40.2]} 27... cxd6 {[%clk
0:00:43.1]} 28. Re8+ {[%clk 0:01:38.6]} 28... Nf8 {[%clk 0:00:43.6]} 29. Rxf8+
{[%clk 0:01:38.3]} 29... Kxf8 {[%clk 0:00:44.2]} 30. Qa8+ {[%clk 0:01:38.9]} 1-0

[Event "*** Titled Tuesday Blitz"]
[Site "Chess.com"]
[Date "2018.05.01"]
[Round "8"]
[White "VerdeNotte"]
[Black "chessking2151"]
[Result "1-0"]
[WhiteElo "2638"]
[BlackElo "2428"]
[TimeControl "180+2"]
[EndTime "14:47:29 PDT"]
[Termination "VerdeNotte won by resignation"]

1. Nf3 {[%clk 0:03:01.9]} 1... Nf6 {[%clk 0:03:00.3]} 2. g3 {[%clk 0:03:02.8]}
2... d5 {[%clk 0:02:57.6]} 3. Bg2 {[%clk 0:03:03.5]} 3... c5 {[%clk 0:02:59]} 4.
c4 {[%clk 0:03:04.2]} 4... d4 {[%clk 0:02:58.8]} 5. b4 {[%clk 0:03:04.9]} 5...
cxb4 {[%clk 0:02:58.5]} 6. a3 {[%clk 0:03:06.1]} 6... bxa3 {[%clk 0:02:58.1]} 7.
O-O {[%clk 0:03:06.5]} 7... e6 {[%clk 0:02:47.5]} 8. Bxa3 {[%clk 0:03:01.2]}
8... Bxa3 {[%clk 0:02:35.5]} 9. Qa4+ {[%clk 0:03:01.6]} 9... Nc6 {[%clk
0:02:34.8]} 10. Qxa3 {[%clk 0:03:02.6]} 10... Qe7 {[%clk 0:02:34.8]} 11. e3
{[%clk 0:03:03.3]} 11... Qxa3 {[%clk 0:02:30]} 12. Nxa3 {[%clk 0:03:04.1]} 12...
dxe3 {[%clk 0:02:25.2]} 13. fxe3 {[%clk 0:03:04.9]} 13... Ke7 {[%clk 0:02:24.3]}
14. d4 {[%clk 0:03:04.9]} 14... Rd8 {[%clk 0:02:23.6]} 15. c5 {[%clk 0:03:05.4]}
15... e5 {[%clk 0:02:23.1]} 16. Nxe5 {[%clk 0:02:59.3]} 16... Nxe5 {[%clk
0:02:21.8]} 17. dxe5 {[%clk 0:03:01.2]} 17... Nd7 {[%clk 0:02:21.9]} 18. c6
{[%clk 0:02:56.3]} 18... bxc6 {[%clk 0:02:20.6]} 19. Nc4 {[%clk 0:02:54.2]}
19... Nc5 {[%clk 0:01:57.8]} 20. Nd6 {[%clk 0:02:44]} 20... f6 {[%clk
0:01:29.8]} 21. Bxc6 {[%clk 0:02:40.8]} 21... Rb8 {[%clk 0:01:24.3]} 22. Rxa7+
{[%clk 0:02:27.5]} 22... Bd7 {[%clk 0:01:24.3]} 23. Nf5+ {[%clk 0:02:21.4]}
23... Kf8 {[%clk 0:01:21.9]} 24. e6 {[%clk 0:02:14.5]} 24... Bxe6 {[%clk
0:01:11.2]} 25. Nxg7 {[%clk 0:02:14.4]} 25... Bc4 {[%clk 0:01:09.2]} 26. Rxf6+
{[%clk 0:02:13.5]} 26... Kg8 {[%clk 0:01:10.7]} 27. Ne8 {[%clk 0:01:51.1]} 27...
Rd1+ {[%clk 0:00:34.3]} 28. Kg2 {[%clk 0:01:50.8]} 28... Rd2+ {[%clk 0:00:22.1]}
29. Kh3 {[%clk 0:01:50.2]} 29... Bd3 {[%clk 0:00:14]} 30. Rg7+ {[%clk
0:01:49.8]} 1-0

[Event "*** Titled Tuesday Blitz"]
[Site "Chess.com"]
[Date "2018.05.01"]
[Round "8"]
[White "juniortay"]
[Black "cukus"]
[Result "1-0"]
[WhiteElo "2368"]
[BlackElo "2377"]
[TimeControl "180+2"]
[EndTime "14:47:35 PDT"]
[Termination "juniortay won on time"]

1. e4 {[%clk 0:03:01.9]} 1... g6 {[%clk 0:02:58.8]} 2. d4 {[%clk 0:03:00.1]}
2... Bg7 {[%clk 0:02:59.8]} 3. Nc3 {[%clk 0:03:01.6]} 3... d5 {[%clk 0:02:59.5]}
4. Nxd5 {[%clk 0:03:00.8]} 4... c6 {[%clk 0:02:59.5]} 5. Nc3 {[%clk 0:03:01.4]}
5... Qxd4 {[%clk 0:03:00.2]} 6. Bd3 {[%clk 0:03:00]} 6... Nf6 {[%clk 0:02:55.2]}
7. Nf3 {[%clk 0:03:00.7]} 7... Qd8 {[%clk 0:02:53.6]} 8. O-O {[%clk 0:03:00.8]}
8... O-O {[%clk 0:02:53.9]} 9. h3 {[%clk 0:03:01.3]} 9... Qc7 {[%clk 0:02:54.6]}
10. Qe2 {[%clk 0:02:59.9]} 10... Nh5 {[%clk 0:02:38.1]} 11. e5 {[%clk
0:02:55.1]} 11... f6 {[%clk 0:02:11.1]} 12. g4 {[%clk 0:02:45.8]} 12... fxe5
{[%clk 0:02:07.6]} 13. gxh5 {[%clk 0:02:45.3]} 13... Bxh3 {[%clk 0:02:07.8]} 14.
hxg6 {[%clk 0:02:41.8]} 14... Bxf1 {[%clk 0:01:36.1]} 15. Kxf1 {[%clk
0:02:25.6]} 15... h6 {[%clk 0:01:25.6]} 16. Bc4+ {[%clk 0:02:17.5]} 16... Kh8
{[%clk 0:01:25.7]} 17. Ng5 {[%clk 0:02:17.8]} 17... Qd7 {[%clk 0:00:51.8]} 18.
Be6 {[%clk 0:02:06]} 18... Qd4 {[%clk 0:00:41.5]} 19. Nf7+ {[%clk 0:01:42.1]}
19... Rxf7 {[%clk 0:00:42]} 20. gxf7 {[%clk 0:01:39.7]} 20... Na6 {[%clk
0:00:29]} 21. Qh5 {[%clk 0:01:37.1]} 21... Kh7 {[%clk 0:00:04.7]} 22. Bf5+
{[%clk 0:01:35.9]} 22... Kh8 {[%clk 0:00:06.2]} 23. Qg6 {[%clk 0:01:36.9]} 23...
Qc4+ {[%clk 0:00:03.6]} 24. Kg1 {[%clk 0:01:35.2]} 1-0

[Event "*** Titled Tuesday Blitz"]
[Site "Chess.com"]
[Date "2018.05.01"]
[Round "8"]
[White "Alexander_Moskalenko"]
[Black "FastChance"]
[Result "1-0"]
[WhiteElo "2759"]
[BlackElo "2663"]
[TimeControl "180+2"]
[EndTime "14:47:41 PDT"]
[Termination "Alexander_Moskalenko won by resignation"]

1. e4 {[%clk 0:02:59.2]} 1... c6 {[%clk 0:03:01.2]} 2. d4 {[%clk 0:02:58.6]}
2... d5 {[%clk 0:03:02.7]} 3. e5 {[%clk 0:03:00.5]} 3... Bf5 {[%clk 0:03:03.6]}
4. h4 {[%clk 0:03:02]} 4... h5 {[%clk 0:03:04.5]} 5. Bd3 {[%clk 0:02:58.5]} 5...
Bxd3 {[%clk 0:03:05.3]} 6. Qxd3 {[%clk 0:03:00.4]} 6... e6 {[%clk 0:03:06.9]} 7.
Bg5 {[%clk 0:02:57.5]} 7... Qb6 {[%clk 0:03:06.7]} 8. Nd2 {[%clk 0:02:58.4]}
8... Nh6 {[%clk 0:03:02]} 9. Ngf3 {[%clk 0:02:56.8]} 9... Nf5 {[%clk 0:03:03.2]}
10. O-O {[%clk 0:02:57.8]} 10... Nd7 {[%clk 0:02:59.6]} 11. c4 {[%clk
0:02:58.9]} 11... Qa6 {[%clk 0:02:59.7]} 12. g3 {[%clk 0:02:56]} 12... Bb4
{[%clk 0:02:57.9]} 13. Rfc1 {[%clk 0:02:53.7]} 13... O-O {[%clk 0:02:51.4]} 14.
Nf1 {[%clk 0:02:52.4]} 14... c5 {[%clk 0:02:45.4]} 15. a3 {[%clk 0:02:43.3]}
15... Ba5 {[%clk 0:02:30.5]} 16. b4 {[%clk 0:02:44.1]} 16... dxc4 {[%clk
0:02:32]} 17. Qe4 {[%clk 0:02:26.6]} 17... Bc7 {[%clk 0:02:10.2]} 18. dxc5
{[%clk 0:02:26.7]} 18... b5 {[%clk 0:02:06.9]} 19. Ne3 {[%clk 0:02:21.8]} 19...
Nxe3 {[%clk 0:02:02.9]} 20. Bxe3 {[%clk 0:02:23.7]} 20... Rfd8 {[%clk 0:01:59]}
21. Ng5 {[%clk 0:02:22.3]} 21... Nf8 {[%clk 0:01:59.7]} 22. Qf3 {[%clk 0:02:13]}
22... Bxe5 {[%clk 0:01:52.6]} 23. Qxf7+ {[%clk 0:02:14]} 23... Kh8 {[%clk
0:01:54]} 24. Qxh5+ {[%clk 0:02:15.9]} 24... Kg8 {[%clk 0:01:55.2]} 25. Qf7+
{[%clk 0:02:17.5]} 25... Kh8 {[%clk 0:01:55.6]} 26. Ra2 {[%clk 0:02:17.3]} 26...
Qc6 {[%clk 0:01:47.6]} 27. Qh5+ {[%clk 0:02:17.4]} 27... Kg8 {[%clk 0:01:48.8]}
28. Qf7+ {[%clk 0:02:17.4]} 28... Kh8 {[%clk 0:01:49.9]} 29. Qh5+ {[%clk
0:02:13.5]} 29... Kg8 {[%clk 0:01:51.3]} 30. Nf7 {[%clk 0:02:15.1]} 30... Qe8
{[%clk 0:01:47.8]} 31. Nh6+ {[%clk 0:02:09.3]} 31... gxh6 {[%clk 0:01:47.5]} 32.
Qxe5 {[%clk 0:02:11]} 32... Kh7 {[%clk 0:01:37.8]} 33. a4 {[%clk 0:02:08.7]}
33... a6 {[%clk 0:01:34.3]} 34. axb5 {[%clk 0:02:09.4]} 34... axb5 {[%clk
0:01:36.2]} 35. Rxa8 {[%clk 0:02:07.5]} 35... Rxa8 {[%clk 0:01:38.1]} 36. Qe4+
{[%clk 0:02:07.5]} 36... Kg8 {[%clk 0:01:34.7]} 37. Bxh6 {[%clk 0:02:07.4]}
37... Ra2 {[%clk 0:01:33.8]} 38. Bxf8 {[%clk 0:02:06.1]} 38... Kxf8 {[%clk
0:01:32.5]} 39. Qf3+ {[%clk 0:01:58.5]} 39... Kg7 {[%clk 0:01:30.8]} 40. Rd1
{[%clk 0:01:58]} 40... Qe7 {[%clk 0:01:18.9]} 41. Rd4 {[%clk 0:01:57.5]} 41...
Ra1+ {[%clk 0:01:08]} 42. Kh2 {[%clk 0:01:58.1]} 42... e5 {[%clk 0:01:03.2]} 43.
Qg4+ {[%clk 0:01:58.8]} 43... Kh6 {[%clk 0:01:02]} 44. Rd6+ {[%clk 0:01:59.9]}
44... Kh7 {[%clk 0:01:01.4]} 45. Rd7 {[%clk 0:02:01.2]} 1-0

[Event "*** Titled Tuesday Blitz"]
[Site "Chess.com"]
[Date "2018.05.01"]
[Round "8"]
[White "ghost_of_pushwood"]
[Black "Caisachess"]
[Result "1/2-1/2"]
[WhiteElo "1846"]
[BlackElo "2145"]
[TimeControl "180+2"]
[EndTime "14:48:02 PDT"]
[Termination "Game drawn by repetition"]

1. c4 {[%clk 0:02:59.1]} 1... Nf6 {[%clk 0:02:59.8]} 2. Nc3 {[%clk 0:02:59.7]}
2... e5 {[%clk 0:02:59.9]} 3. Nf3 {[%clk 0:02:59.2]} 3... Nc6 {[%clk 0:03:00.4]}
4. e4 {[%clk 0:02:59.8]} 4... Bc5 {[%clk 0:02:59.6]} 5. Nxe5 {[%clk 0:03:00.4]}
5... Nxe5 {[%clk 0:02:41.4]} 6. d4 {[%clk 0:03:00.3]} 6... Bb4 {[%clk
0:02:42.5]} 7. dxe5 {[%clk 0:03:00.8]} 7... Nxe4 {[%clk 0:02:44]} 8. Qd3 {[%clk
0:03:01.3]} 8... Nxc3 {[%clk 0:02:41.2]} 9. bxc3 {[%clk 0:03:01.7]} 9... Bc5
{[%clk 0:02:42.3]} 10. Qg3 {[%clk 0:03:01.5]} 10... g6 {[%clk 0:02:22.8]} 11.
Bg5 {[%clk 0:02:49.1]} 11... Be7 {[%clk 0:02:20.3]} 12. Bh6 {[%clk 0:02:47.8]}
12... Bf8 {[%clk 0:02:19.8]} 13. Bg5 {[%clk 0:02:38.3]} 13... Be7 {[%clk
0:02:19.8]} 14. Bh6 {[%clk 0:02:21.4]} 14... d6 {[%clk 0:02:19.7]} 15. Rd1
{[%clk 0:02:08.8]} 15... Bf5 {[%clk 0:02:17.1]} 16. Bd3 {[%clk 0:02:00.4]} 16...
Bxd3 {[%clk 0:02:16.3]} 17. Rxd3 {[%clk 0:02:00.5]} 17... Qd7 {[%clk 0:02:17.3]}
18. O-O {[%clk 0:01:57.5]} 18... Qf5 {[%clk 0:02:16]} 19. exd6 {[%clk
0:01:53.7]} 19... Bxd6 {[%clk 0:02:12.5]} 20. Re1+ {[%clk 0:01:53.9]} 20... Kd7
{[%clk 0:02:12.3]} 21. Red1 {[%clk 0:01:47.8]} 21... Rad8 {[%clk 0:02:00.5]} 22.
Bf4 {[%clk 0:01:33.9]} 22... Kc8 {[%clk 0:01:58.9]} 23. Bxd6 {[%clk 0:01:33.2]}
23... cxd6 {[%clk 0:01:59.8]} 24. Rxd6 {[%clk 0:01:33.4]} 24... Rhe8 {[%clk
0:01:54.7]} 25. h3 {[%clk 0:01:29.2]} 25... a6 {[%clk 0:01:38.5]} 26. Rxd8+
{[%clk 0:01:22.3]} 26... Rxd8 {[%clk 0:01:36.8]} 27. Rxd8+ {[%clk 0:01:22.1]}
27... Kxd8 {[%clk 0:01:36.9]} 28. Qb8+ {[%clk 0:01:18.5]} 28... Qc8 {[%clk
0:01:37.8]} 29. Qd6+ {[%clk 0:01:18.8]} 29... Ke8 {[%clk 0:01:37.8]} 30. Qe5+
{[%clk 0:01:16.7]} 30... Kd7 {[%clk 0:01:31.2]} 31. Qd5+ {[%clk 0:01:13.5]}
31... Ke7 {[%clk 0:01:32.3]} 32. Qe5+ {[%clk 0:01:08.2]} 32... Qe6 {[%clk
0:01:32.1]} 33. Qc7+ {[%clk 0:01:08.2]} 33... Qd7 {[%clk 0:01:33]} 34. Qe5+
{[%clk 0:01:08.5]} 34... Qe6 {[%clk 0:01:13.9]} 35. Qc7+ {[%clk 0:01:06.4]}
35... Qd7 {[%clk 0:01:14.7]} 36. Qe5+ {[%clk 0:01:06.2]} 36... Qe6 {[%clk
0:01:10.5]} 1/2-1/2

[Event "*** Titled Tuesday Blitz"]
[Site "Chess.com"]
[Date "2018.05.01"]
[Round "8"]
[White "saraswathii"]
[Black "pultineviciuspaulius"]
[Result "0-1"]
[WhiteElo "2269"]
[BlackElo "2537"]
[TimeControl "180+2"]
[EndTime "14:48:06 PDT"]
[Termination "pultineviciuspaulius won by resignation"]

1. e4 {[%clk 0:02:52.2]} 1... c6 {[%clk 0:03:00.2]} 2. d3 {[%clk 0:02:51.8]}
2... d5 {[%clk 0:03:02.1]} 3. Nd2 {[%clk 0:02:51.6]} 3... g6 {[%clk 0:03:03.2]}
4. Ngf3 {[%clk 0:02:52.1]} 4... Bg7 {[%clk 0:03:04.7]} 5. g3 {[%clk 0:02:51.4]}
5... e5 {[%clk 0:03:06]} 6. Bg2 {[%clk 0:02:51.9]} 6... Ne7 {[%clk 0:03:07.5]}
7. O-O {[%clk 0:02:52.7]} 7... O-O {[%clk 0:03:09.1]} 8. Qe2 {[%clk 0:02:51.2]}
8... Qc7 {[%clk 0:03:10]} 9. Re1 {[%clk 0:02:50.2]} 9... Re8 {[%clk 0:03:11.3]}
10. exd5 {[%clk 0:02:49.3]} 10... cxd5 {[%clk 0:03:08.6]} 11. Nb3 {[%clk
0:02:32.6]} 11... Nbc6 {[%clk 0:03:08]} 12. c3 {[%clk 0:02:23.2]} 12... h6
{[%clk 0:03:09.2]} 13. Be3 {[%clk 0:02:23.5]} 13... a5 {[%clk 0:03:10]} 14. a4
{[%clk 0:02:23.6]} 14... b6 {[%clk 0:03:11.4]} 15. Rad1 {[%clk 0:02:22]} 15...
Ba6 {[%clk 0:03:12.4]} 16. Qd2 {[%clk 0:02:22.8]} 16... Kh7 {[%clk 0:03:13.2]}
17. Nh4 {[%clk 0:02:20.9]} 17... Rad8 {[%clk 0:03:11.8]} 18. d4 {[%clk
0:02:15.5]} 18... Bc4 {[%clk 0:03:09.6]} 19. Nc1 {[%clk 0:02:14.9]} 19... exd4
{[%clk 0:03:10.5]} 20. cxd4 {[%clk 0:02:14]} 20... Ba6 {[%clk 0:03:06.1]} 21.
Bf4 {[%clk 0:02:11.7]} 21... Qd7 {[%clk 0:03:07.1]} 22. Be3 {[%clk 0:02:10.8]}
22... Rc8 {[%clk 0:03:04.7]} 23. Ne2 {[%clk 0:02:08.8]} 23... Nb4 {[%clk
0:02:58.5]} 24. Nc3 {[%clk 0:02:09.6]} 24... Bc4 {[%clk 0:02:50.6]} 25. Rb1
{[%clk 0:01:45.2]} 25... Bb3 {[%clk 0:02:48.7]} 26. Rec1 {[%clk 0:01:43]} 26...
Bxa4 {[%clk 0:02:46.7]} 27. Nxa4 {[%clk 0:01:18.8]} 27... Qxa4 {[%clk
0:02:48.6]} 28. Bh3 {[%clk 0:01:18.6]} 28... Rxc1+ {[%clk 0:02:48.7]} 29. Rxc1
{[%clk 0:01:20.5]} 29... Nec6 {[%clk 0:02:37.5]} 30. Bd7 {[%clk 0:01:15.5]}
30... Re7 {[%clk 0:02:37.9]} 31. Bh3 {[%clk 0:00:58]} 31... Na2 {[%clk
0:02:33.4]} 32. Ra1 {[%clk 0:00:56.2]} 32... Qb3 {[%clk 0:02:12.5]} 33. Nf3
{[%clk 0:00:56]} 33... Re4 {[%clk 0:02:07.3]} 34. Bg2 {[%clk 0:00:54.7]} 34...
Nab4 {[%clk 0:02:07.2]} 35. Ne5 {[%clk 0:00:49.7]} 35... Nxe5 {[%clk 0:02:05]}
36. Bxe4 {[%clk 0:00:49.1]} 36... Nc4 {[%clk 0:02:01.5]} 37. Bxd5 {[%clk
0:00:29.6]} 37... Nxd5 {[%clk 0:01:58]} 38. Qe2 {[%clk 0:00:27.9]} 38... Ndxe3
{[%clk 0:01:57.1]} 39. fxe3 {[%clk 0:00:27.6]} 39... Qxe3+ {[%clk 0:01:57.5]}
0-1

[Event "*** Titled Tuesday Blitz"]
[Site "Chess.com"]
[Date "2018.05.01"]
[Round "8"]
[White "Margency"]
[Black "popov_m"]
[Result "1-0"]
[WhiteElo "2533"]
[BlackElo "2391"]
[TimeControl "180+2"]
[EndTime "14:48:08 PDT"]
[Termination "Margency won by resignation"]

1. e4 {[%clk 0:03:01.9]} 1... g6 {[%clk 0:02:59.5]} 2. d4 {[%clk 0:03:02.6]}
2... Bg7 {[%clk 0:03:00.5]} 3. Nc3 {[%clk 0:03:03.2]} 3... d6 {[%clk 0:03:01.7]}
4. Be3 {[%clk 0:03:03.5]} 4... a6 {[%clk 0:03:02.5]} 5. f4 {[%clk 0:03:04.5]}
5... b5 {[%clk 0:03:01.1]} 6. Bd3 {[%clk 0:03:04.8]} 6... Bb7 {[%clk 0:03:02.1]}
7. Nf3 {[%clk 0:03:05.4]} 7... b4 {[%clk 0:03:02.3]} 8. Ne2 {[%clk 0:03:02.1]}
8... Nf6 {[%clk 0:03:03.5]} 9. Ng3 {[%clk 0:03:02.8]} 9... h5 {[%clk 0:03:04.7]}
10. e5 {[%clk 0:03:03]} 10... Nd5 {[%clk 0:02:58.6]} 11. Bd2 {[%clk 0:03:01]}
11... h4 {[%clk 0:02:57.8]} 12. Ne4 {[%clk 0:03:01.1]} 12... h3 {[%clk
0:02:58.8]} 13. g3 {[%clk 0:02:59.5]} 13... Nd7 {[%clk 0:02:50.3]} 14. Qe2
{[%clk 0:02:58.2]} 14... O-O {[%clk 0:02:38.8]} 15. O-O {[%clk 0:02:55.5]} 15...
c5 {[%clk 0:02:37.5]} 16. c3 {[%clk 0:02:55.5]} 16... bxc3 {[%clk 0:02:33.4]}
17. bxc3 {[%clk 0:02:54.1]} 17... cxd4 {[%clk 0:02:25.1]} 18. cxd4 {[%clk
0:02:55.1]} 18... dxe5 {[%clk 0:02:08.6]} 19. dxe5 {[%clk 0:02:55.8]} 19... Rc8
{[%clk 0:01:59.5]} 20. Rab1 {[%clk 0:02:55.3]} 20... Ba8 {[%clk 0:01:58.9]} 21.
e6 {[%clk 0:02:45.9]} 21... Nc5 {[%clk 0:01:05.7]} 22. exf7+ {[%clk 0:02:45.5]}
22... Rxf7 {[%clk 0:01:04.2]} 23. Nxc5 {[%clk 0:02:46]} 23... Rxc5 {[%clk
0:01:05.5]} 24. Bxg6 {[%clk 0:02:26.2]} 24... Rf6 {[%clk 0:01:04.1]} 25. Ne5
{[%clk 0:02:24.2]} 25... Rxg6 {[%clk 0:00:55.2]} 26. Nxg6 {[%clk 0:02:24.8]}
26... Bd4+ {[%clk 0:00:55.5]} 27. Rf2 {[%clk 0:02:25.4]} 27... Kg7 {[%clk
0:00:37.7]} 28. Ne5 {[%clk 0:02:20]} 28... Nf6 {[%clk 0:00:35.9]} 29. Be3 {[%clk
0:02:09.8]} 29... Qd5 {[%clk 0:00:07]} 30. Nf3 {[%clk 0:02:10]} 30... Bxe3
{[%clk 0:00:05.8]} 31. Qxe3 {[%clk 0:02:10.9]} 31... Rc7 {[%clk 0:00:04.3]} 32.
Qe5 {[%clk 0:02:03.9]} 32... Qd3 {[%clk 0:00:04.5]} 33. Rbf1 {[%clk 0:01:49.9]}
33... Rd7 {[%clk 0:00:05.2]} 34. Qg5+ {[%clk 0:01:50]} 34... Kf8 {[%clk
0:00:05.6]} 35. Qh6+ {[%clk 0:01:49]} 35... Kf7 {[%clk 0:00:06.4]} 1-0